bitfinex-derivatives/quotes_BTCF0:USTF0_20210706
["timestamp","ask_amount","ask_price","bid_price","bid_amount"]
[1625593086917,0.50758555,33781.0,33780.0,3.48022654]
[1625593087039,0.50758555,33781.0,33780.0,3.48431499]
[1625593087396,0.50758555,33781.0,33780.0,3.72489043]
[1625593087638,0.16932907,33781.0,33780.0,3.72489043]
[1625593087818,0.50762383,33781.0,33780.0,3.72489043]
[1625593088058,1.18401805,33782.0,33780.0,3.72489043]
[1625593088297,0.67656386,33782.0,33781.0,2.2626414]
[1625593088538,0.16924541,33782.0,33781.0,3.48065529]
[1625593088657,0.16924541,33782.0,33781.0,3.48473893]
[1625593088782,0.25397547,33782.0,33781.0,3.48473893]
[1625593089439,0.25397547,33782.0,33781.0,3.72531437]
[1625593089558,0.50748209,33782.0,33781.0,3.72531437]
[1625593090762,0.50748209,33782.0,33781.0,3.72123073]
[1625593091661,0.50748209,33782.0,33781.0,2.50321684]
[1625593092081,1.18360111,33782.0,33781.0,2.50321684]
[1625593094305,1.18360111,33782.0,33781.0,3.72215137]
[1625593094548,1.18360111,33782.0,33781.0,2.50321684]
[1625593094730,1.18360111,33782.0,33781.0,3.72199997]
[1625593095747,1.18360111,33782.0,33781.0,2.50321684]
[1625593095986,1.18360111,33782.0,33781.0,3.72177897]
[1625593096235,1.18405798,33785.0,33781.0,3.72177897]
[1625593096236,1.18405798,33785.0,33781.0,5.1183553]
[1625593096237,0.25434347,33784.0,33781.0,5.1183553]
[1625593096468,0.08487542,33785.0,33781.0,6.68481695]
[1625593096708,0.08489826,33786.0,33784.0,4.87312225]
[1625593096948,0.08491918,33787.0,33785.0,4.87297384]
[1625593097189,0.08493953,33788.0,33786.0,4.87284465]
[1625593097429,0.08493953,33788.0,33784.0,2.33107149]
[1625593097430,0.16970952,33789.0,33787.0,5.35397279]
[1625593097431,0.08495473,33789.0,33787.0,5.35397279]
[1625593097548,0.08495473,33789.0,33787.0,5.35805292]
[1625593097669,0.16973988,33790.0,33787.0,5.35805292]
[1625593097794,1.18716174,33794.0,33787.0,5.35805292]
[1625593097795,1.18716174,33794.0,33790.0,4.7921]
[1625593097797,0.1696931,33793.0,33790.0,4.7921]
[1625593098032,1.017311,33795.0,33790.0,4.7921]
[1625593098033,1.017311,33795.0,33792.0,5.08832668]
[1625593098035,0.16980413,33795.0,33792.0,5.08832668]
[1625593098274,4.13e-06,33795.0,33792.0,5.08832668]
[1625593098395,0.16983586,33796.0,33794.0,3.47675814]
[1625593098635,1.18864582,33800.0,33795.0,4.86719892]
[1625593098755,0.98364582,33800.0,33795.0,4.86719892]
[1625593098877,0.67945271,33803.0,33799.0,3.20224066]
[1625593099122,0.67945271,33803.0,33802.0,1.73817405]
[1625593099359,0.67948017,33804.0,33802.0,1.73817405]
[1625593099479,0.67948017,33804.0,33803.0,0.96230176]
[1625593099596,1.18896292,33807.0,33803.0,0.96230176]
[1625593099597,0.67836211,33807.0,33803.0,0.96230176]
[1625593100078,0.67836211,33807.0,33806.0,5.1814]
[1625593100203,0.67836211,33807.0,33806.0,5.44709]
[1625593100320,1.69570614,33807.0,33806.0,5.44709]
[1625593101041,0.67836211,33807.0,33806.0,5.44709]
[1625593101462,0.67788302,33808.0,33806.0,5.44709]
[1625593101706,0.67701469,33809.0,33806.0,5.44709]
[1625593101822,0.67701469,33809.0,33806.0,0.26569]
[1625593102186,0.67701469,33809.0,33803.0,0.96230176]
[1625593102306,4.48611469,33809.0,33803.0,0.96230176]
[1625593102427,0.67602059,33807.0,33803.0,0.96230176]
[1625593102911,0.67492497,33806.0,33803.0,0.96230176]
[1625593103330,0.67573689,33807.0,33803.0,0.96230176]
[1625593104411,0.67558942,33808.0,33803.0,0.96230176]
[1625593104650,0.67564352,33807.0,33803.0,0.96230176]
[1625593104891,1.01338085,33808.0,33803.0,0.96230176]
[1625593104892,0.6757105,33808.0,33803.0,0.96230176]
[1625593105433,0.6757105,33808.0,33807.0,0.24057544]
[1625593106996,1.68862955,33808.0,33807.0,0.24057544]
[1625593110360,2.86805175,33808.0,33807.0,0.24057544]
[1625593111502,1.68862955,33808.0,33807.0,0.24057544]
[1625593113303,0.6757105,33808.0,33807.0,0.24057544]
[1625593113788,1.68804015,33808.0,33807.0,0.24057544]
[1625593114329,0.6757105,33808.0,33807.0,0.24057544]
[1625593116069,4.48399292,33809.0,33807.0,0.24057544]
[1625593116188,4.48399292,33809.0,33807.0,0.59081544]
[1625593116309,0.67475326,33808.0,33807.0,0.59081544]
[1625593116790,4.4838678,33809.0,33807.0,0.59081544]
[1625593117090,0.6749712,33808.0,33807.0,0.59081544]
[1625593117751,4.48405016,33809.0,33807.0,0.59081544]
[1625593118891,0.67505615,33808.0,33807.0,0.59081544]
[1625593119371,4.4841914,33809.0,33807.0,0.59081544]
[1625593120993,0.67486342,33808.0,33807.0,0.59081544]
[1625593121475,5.49640762,33809.0,33807.0,0.59081544]
[1625593121594,4.48419682,33809.0,33807.0,0.59081544]
[1625593121713,0.67517465,33808.0,33807.0,0.59081544]
[1625593122913,0.69037365,33808.0,33807.0,0.59081544]
[1625593123215,0.015199,33808.0,33807.0,0.59081544]
[1625593126701,0.05013175,33808.0,33807.0,0.59081544]
[1625593127604,0.72503351,33808.0,33807.0,0.59081544]
[1625593128809,1.73724419,33808.0,33807.0,0.59081544]
[1625593128927,1.73724419,33808.0,33807.0,0.24057544]
[1625593129654,2.05092419,33808.0,33807.0,0.24057544]
[1625593130013,2.05092419,33808.0,33803.0,0.48115088]
[1625593130014,3.23479737,33808.0,33803.0,0.48115088]
[1625593130134,3.23479737,33808.0,33790.0,0.69113741]
[1625593130256,0.67649369,33803.0,33789.0,0.69117413]
[1625593130374,0.67649369,33803.0,33794.0,0.00409047]
[1625593130495,0.67655,33802.0,33794.0,0.00409047]
[1625593130734,0.69172611,33802.0,33790.0,0.00409063]
[1625593130976,0.69243193,33801.0,33795.0,0.00409068]
[1625593131095,1.01222193,33801.0,33795.0,0.00409068]
[1625593131216,1.01222193,33801.0,33791.0,0.00409068]
[1625593131457,0.01517619,33800.0,33796.0,0.00409066]
[1625593131577,0.24057544,33799.0,33798.0,0.24057544]
[1625593132058,0.25575159,33799.0,33798.0,0.24057544]
[1625593133443,0.01517615,33799.0,33798.0,0.24057544]
[1625593133924,0.01517501,33800.0,33798.0,0.24466563]
[1625593134158,0.24057544,33801.0,33798.0,0.24466563]
[1625593134159,0.01517488,33799.0,33798.0,0.24466563]
[1625593134519,0.01517438,33800.0,33798.0,0.24466563]
[1625593134759,0.01517438,33800.0,33799.0,0.00408986]
[1625593134879,0.01517438,33800.0,33799.0,0.34937986]
[1625593135599,0.01517438,33800.0,33799.0,0.5899553]
[1625593138724,0.01517438,33800.0,33799.0,0.58586544]
[1625593138963,0.01517438,33800.0,33799.0,0.58995551]
[1625593140045,0.01517438,33800.0,33799.0,0.58586544]
[1625593140285,0.01517438,33800.0,33799.0,0.58995552]
[1625593140891,0.01517438,33800.0,33799.0,0.58586544]
[1625593141849,0.35557546,33800.0,33799.0,0.58586544]
[1625593142336,0.01517438,33800.0,33799.0,0.58586544]
[1625593142635,1.71656946,33800.0,33799.0,0.58586544]
[1625593142876,2.90911381,33800.0,33799.0,0.58586544]
[1625593142998,2.90911381,33800.0,33799.0,0.34529]
[1625593143115,2.90911381,33800.0,33794.0,0.24057544]
[1625593143237,0.68142576,33796.0,33794.0,0.24057544]
[1625593143356,0.68142576,33796.0,33791.0,0.34679152]
[1625593143597,0.680851,33792.0,33787.0,0.34683232]
[1625593143721,3.7117,33788.0,33787.0,0.34683232]
[1625593143837,3.7117,33788.0,33786.0,0.58742313]
[1625593144080,3.7117,33788.0,33787.0,0.00409176]
[1625593144081,4.06744971,33788.0,33787.0,0.00409176]
[1625593144319,4.05227069,33788.0,33787.0,0.00409176]
[1625593144559,4.05227069,33788.0,33786.0,0.24057544]
[1625593144560,3.7268794,33788.0,33786.0,0.24057544]
[1625593144681,5.43028903,33788.0,33786.0,0.24057544]
[1625593145041,0.6813155,33787.0,33786.0,0.24057544]
[1625593145401,1.70376419,33787.0,33786.0,0.24057544]
[1625593145639,1.95951948,33787.0,33786.0,0.24057544]
[1625593145879,1.95951948,33787.0,33786.0,0.58767224]
[1625593145880,0.92189094,33787.0,33786.0,0.58767224]
[1625593145999,0.24057544,33787.0,33786.0,0.58767224]
[1625593146724,0.24057544,33787.0,33786.0,0.24057544]
[1625593146842,0.24057544,33787.0,33786.0,0.93492949]
[1625593147201,0.34163806,33789.0,33786.0,0.93492949]
[1625593147444,1.53677369,33798.0,33786.0,0.93492949]
[1625593147445,3.41467323,33829.0,33786.0,4.89912479]
[1625593147446,0.34203243,33793.0,33786.0,4.89912479]
[1625593147561,0.34203243,33793.0,33786.0,4.9032155]
[1625593147682,0.3421131,33794.0,33792.0,0.48115088]
[1625593147923,0.68369379,33793.0,33792.0,0.48115088]
[1625593148162,0.3420139,33793.0,33792.0,0.48115088]
[1625593148402,0.3420139,33793.0,33792.0,0.82829684]
[1625593148583,0.3420139,33793.0,33792.0,0.48115088]
[1625593148822,0.34210716,33794.0,33792.0,1.17561367]
[1625593149063,0.68419147,33795.0,33793.0,0.3472303]
[1625593149304,0.68408863,33794.0,33792.0,0.82838483]
[1625593149545,0.68411316,33795.0,33793.0,0.34723395]
[1625593149664,0.24057544,33794.0,33793.0,0.34723395]
[1625593149785,0.58273436,33794.0,33792.0,1.17559307]
[1625593150270,0.58273436,33794.0,33793.0,0.34726205]
[1625593150272,0.24057544,33794.0,33793.0,0.34726205]
[1625593150566,0.92436292,33794.0,33792.0,0.82841083]
[1625593150687,0.34209721,33793.0,33792.0,0.82841083]
[1625593150808,0.34209721,33793.0,33792.0,0.48115088]
[1625593151169,0.58285541,33794.0,33792.0,2.217869]
[1625593151293,0.34227997,33794.0,33792.0,2.217869]
[1625593151410,1.0264978,33796.0,33792.0,2.217869]
[1625593151411,0.34248067,33796.0,33793.0,1.73666779]
[1625593151651,0.34248067,33796.0,33795.0,0.69466127]
[1625593152431,0.68479019,33797.0,33795.0,0.69466127]
[1625593152674,0.68479019,33797.0,33796.0,0.69501987]
[1625593153152,0.68479019,33797.0,33795.0,0.69502052]
[1625593153574,0.68644352,33796.0,33795.0,0.69502052]
[1625593153694,0.92701896,33796.0,33795.0,0.69502052]
[1625593153813,0.92701896,33796.0,33794.0,0.93567336]
[1625593153814,1.95619436,33796.0,33794.0,0.93567336]
[1625593154053,1.95619436,33796.0,33794.0,0.58813673]
[1625593154054,1.71405399,33795.0,33794.0,0.58813673]
[1625593154776,2.913893,33795.0,33794.0,0.58813673]
[1625593155256,1.71405399,33795.0,33794.0,0.58813673]
[1625593155499,1.71405399,33795.0,33794.0,0.24057544]
[1625593155739,2.91338161,33795.0,33794.0,0.93651961]
[1625593155979,1.71405399,33795.0,33794.0,1.98043256]
[1625593156698,0.68565587,33795.0,33794.0,1.98043256]
[1625593156940,0.68565587,33795.0,33794.0,3.1982575]
[1625593157420,0.68565587,33795.0,33794.0,1.98043256]
[1625593157601,1.71210193,33795.0,33794.0,1.98043256]
[1625593158745,0.68565587,33795.0,33794.0,1.98043256]
[1625593159466,1.71245917,33795.0,33794.0,1.98043256]
[1625593163131,1.71245917,33795.0,33794.0,1.98451494]
[1625593163370,0.68565587,33795.0,33794.0,3.2028649]
[1625593164455,0.68565587,33795.0,33794.0,3.19878252]
[1625593169018,0.68565587,33795.0,33794.0,3.20286503]
[1625593170945,1.71699587,33795.0,33794.0,3.20286503]
[1625593171424,1.71699587,33795.0,33794.0,3.19878252]
[1625593173347,1.73220491,33795.0,33794.0,3.19878252]
[1625593173588,1.71699587,33795.0,33794.0,3.19878252]
[1625593173828,2.92226167,33795.0,33794.0,3.19878252]
[1625593174434,1.71699587,33795.0,33794.0,3.19878252]
[1625593174853,1.73220496,33795.0,33794.0,3.20286534]
[1625593176777,1.73220496,33795.0,33794.0,4.59615589]
[1625593177741,1.73220496,33795.0,33794.0,3.20286534]
[1625593178464,2.93679819,33795.0,33794.0,3.20286534]
[1625593178705,1.73220496,33795.0,33794.0,3.20286534]
[1625593179842,1.9727804,33795.0,33794.0,3.20286534]
[1625593179963,3.17799253,33795.0,33794.0,3.20286534]
[1625593181887,3.17799253,33795.0,33794.0,4.91334524]
[1625593181888,1.9727804,33795.0,33794.0,4.91334524]
[1625593182006,1.73220496,33795.0,33794.0,4.91334524]
[1625593182127,0.36011041,33795.0,33794.0,4.91334524]
[1625593182363,0.36011041,33795.0,33794.0,9.52774524]
[1625593184044,0.34490132,33795.0,33794.0,11.09562996]
[1625593185608,0.69007175,33796.0,33794.0,11.09562996]
[1625593185609,0.3451833,33796.0,33794.0,11.09562996]
[1625593185849,0.3451833,33796.0,33795.0,4.59603725]
[1625593185968,0.3451833,33796.0,33795.0,4.60011929]
[1625593186090,0.6901941,33797.0,33795.0,4.60011929]
[1625593186211,0.01520726,33796.0,33795.0,4.60011929]
[1625593186569,0.70526119,33796.0,33795.0,4.60011929]
[1625593187227,0.69005393,33796.0,33795.0,4.60011929]
[1625593187532,0.70526139,33796.0,33795.0,4.60011929]
[1625593188612,1.73993495,33796.0,33795.0,4.60011929]
[1625593188795,2.25734979,33796.0,33795.0,5.12283016]
[1625593189514,1.22267623,33796.0,33795.0,5.12283016]
[1625593190000,2.256883,33796.0,33795.0,5.12283016]
[1625593190245,2.256883,33796.0,33795.0,3.72908238]
[1625593190248,3.46292027,33796.0,33795.0,3.72908238]
[1625593191259,3.46292027,33796.0,33795.0,4.04076238]
[1625593191382,2.256883,33796.0,33795.0,5.43475341]
[1625593192759,1.22267623,33796.0,33795.0,5.43475341]
[1625593193720,1.20746877,33796.0,33795.0,5.43475341]
[1625593193963,0.34525433,33797.0,33795.0,7.0026024]
[1625593194201,0.3452053,33798.0,33796.0,6.44955654]
[1625593194443,0.34524882,33800.0,33797.0,6.44499131]
[1625593194562,0.34524882,33800.0,33797.0,6.44907418]
[1625593194683,0.34524606,33801.0,33799.0,6.44476229]
[1625593194923,0.86294112,33802.0,33800.0,6.4426472]
[1625593195042,0.86294112,33802.0,33801.0,3.8617]
[1625593195163,1.79168301,33804.0,33801.0,10.30394464]
[1625593195285,1.79168301,33804.0,33801.0,10.30802705]
[1625593195404,0.9284,33804.0,33803.0,6.44222323]
[1625593195522,0.9284,33804.0,33803.0,6.74368323]
[1625593195642,0.34539327,33804.0,33803.0,6.74368323]
[1625593195884,0.6224306,33806.0,33803.0,7.46949177]
[1625593196363,0.6224306,33806.0,33804.0,0.00408187]
[1625593196848,0.34566728,33808.0,33805.0,5.91906016]
[1625593197086,1.03665635,33810.0,33804.0,0.00408187]
[1625593197087,0.34574715,33810.0,33807.0,5.91886994]
[1625593197326,0.14139459,33812.0,33809.0,4.34707915]
[1625593197567,0.69061657,33814.0,33811.0,4.34699758]
[1625593197687,0.69061657,33814.0,33811.0,4.61515758]
[1625593197809,0.69086802,33815.0,33813.0,4.34691667]
[1625593197928,0.69086802,33815.0,33814.0,1.22172632]
[1625593198051,0.6915199,33818.0,33814.0,5.56840407]
[1625593198288,0.6915199,33818.0,33814.0,5.57248413]
[1625593198470,0.6915199,33818.0,33817.0,1.39083864]
[1625593198591,0.69204037,33821.0,33817.0,9.41977075]
[1625593198710,0.69204037,33821.0,33817.0,9.91977075]
[1625593198832,0.6921359,33822.0,33820.0,4.34607339]
[1625593198949,0.6921359,33822.0,33820.0,4.58258339]
[1625593199073,0.6926166,33824.0,33821.0,4.34603808]
[1625593199312,0.69136412,33826.0,33823.0,1.73525377]
[1625593199551,0.69129913,33825.0,33824.0,0.69409144]
[1625593199796,0.69129913,33825.0,33821.0,1.21689066]
[1625593199798,0.69129913,33825.0,33822.0,0.69410164]
[1625593199800,1.72768238,33825.0,33822.0,0.69410164]
[1625593199911,1.72768238,33825.0,33824.0,0.48115088]
[1625593200033,1.38178677,33828.0,33824.0,0.48115088]
[1625593200034,1.20894254,33826.0,33824.0,0.48115088]
[1625593200331,1.72698595,33825.0,33824.0,0.48115088]
[1625593201295,0.69082891,33825.0,33824.0,0.48115088]
[1625593201536,0.69120008,33826.0,33824.0,1.17522284]
[1625593201777,0.69024621,33827.0,33824.0,0.48115088]
[1625593202016,0.69050471,33828.0,33826.0,0.24057544]
[1625593202798,0.6910794,33829.0,33826.0,0.24057544]
[1625593204064,1.20925941,33832.0,33826.0,0.24057544]
[1625593204065,0.69032139,33832.0,33828.0,0.24057544]
[1625593204181,0.69032139,33832.0,33828.0,0.45303544]
[1625593204661,0.69032139,33832.0,33831.0,4.6396]
[1625593205140,0.69032139,33832.0,33828.0,0.24057544]
[1625593205272,1.72331751,33832.0,33828.0,0.24057544]
[1625593205502,0.6883285,33830.0,33828.0,0.24057544]
[1625593205743,0.6883285,33830.0,33829.0,4.7642]
[1625593205982,0.68790382,33831.0,33829.0,4.7642]
[1625593206462,0.68772706,33830.0,33829.0,4.7642]
[1625593206704,0.68790384,33831.0,33829.0,4.7642]
[1625593207728,1.03176979,33832.0,33829.0,4.7642]
[1625593207729,0.68733317,33832.0,33829.0,4.7642]
[1625593208087,0.24057544,33831.0,33830.0,0.24057544]
[1625593208386,0.92766472,33831.0,33830.0,0.24057544]
[1625593209109,1.95799087,33831.0,33830.0,0.24057544]
[1625593209648,0.24057544,33831.0,33830.0,0.24057544]
[1625593210911,0.24057544,33831.0,33830.0,4.03127544]
[1625593212295,0.24057544,33831.0,33830.0,0.24057544]
[1625593214040,0.92639615,33831.0,33830.0,0.24057544]
[1625593215003,1.95460688,33831.0,33821.0,0.24057544]
[1625593215123,0.24057544,33831.0,33821.0,0.24057544]
[1625593215248,0.24057544,33831.0,33816.0,0.69010964]
[1625593215366,0.24057544,33831.0,33813.0,1.20768902]
[1625593215367,0.24057544,33831.0,33814.0,0.69013969]
[1625593215368,0.68505101,33828.0,33814.0,0.69013969]
[1625593215484,1.02851101,33828.0,33814.0,0.69013969]
[1625593215604,1.02851101,33828.0,33811.0,0.69018232]
[1625593215605,0.68464125,33826.0,33811.0,0.69018232]
[1625593215724,4.8006,33824.0,33811.0,0.69018232]
[1625593216087,0.24057544,33818.0,33817.0,0.24057544]
[1625593218192,0.48115088,33818.0,33817.0,0.24057544]
[1625593219153,0.48115088,33818.0,33813.0,0.24057544]
[1625593219273,0.48115088,33818.0,33811.0,0.69000118]
[1625593219516,0.48115088,33818.0,33809.0,0.69005162]
[1625593219755,0.48115088,33818.0,33806.0,0.69015454]
[1625593219997,0.48115088,33818.0,33805.0,0.69018422]
[1625593220118,0.72172632,33806.0,33805.0,0.69018422]
[1625593220238,1.03050632,33806.0,33805.0,0.69018422]
[1625593220359,1.03050632,33806.0,33804.0,0.69021079]
[1625593220599,1.03050632,33806.0,33801.0,1.20786888]
[1625593220600,1.03050632,33806.0,33802.0,0.69023794]
[1625593220839,1.03050632,33806.0,33803.0,0.69024061]
[1625593221080,1.03050632,33806.0,33802.0,0.69023336]
[1625593221261,1.03050632,33806.0,33803.0,0.69023239]
[1625593221503,1.03050632,33806.0,33802.0,0.69023581]
[1625593221744,1.03050632,33806.0,33803.0,0.69031449]
[1625593222225,1.03050632,33806.0,33803.0,0.93088993]
[1625593222344,0.54935544,33806.0,33803.0,0.93088993]
[1625593222464,0.24057544,33806.0,33803.0,0.93088993]
[1625593222584,0.24057544,33806.0,33804.0,0.69028846]
[1625593222825,0.24057544,33806.0,33805.0,0.69024957]
[1625593223008,0.24057544,33806.0,33805.0,1.72561045]
[1625593223607,0.24057544,33806.0,33805.0,2.93769536]
[1625593224149,0.24057544,33806.0,33805.0,3.1782708]
[1625593227222,0.24057544,33806.0,33805.0,1.97027021]
[1625593227591,0.24057544,33806.0,33805.0,0.93082501]
[1625593227945,0.24057544,33806.0,33805.0,0.24057544]
[1625593228120,0.52815544,33806.0,33805.0,0.24057544]
[1625593228241,0.76873088,33806.0,33805.0,0.24057544]
[1625593228425,0.76873088,33806.0,33803.0,0.93104642]
[1625593228426,0.76873088,33806.0,33803.0,0.69047098]
[1625593228664,0.76873088,33806.0,33802.0,0.69050301]
[1625593229024,0.76873088,33806.0,33801.0,0.6905083]
[1625593229985,0.76873088,33806.0,33800.0,0.93120045]
[1625593230225,0.24057544,33801.0,33800.0,0.93120045]
[1625593230466,0.24057544,33801.0,33800.0,0.24057544]
[1625593231368,0.24057544,33801.0,33797.0,0.69068437]
[1625593232272,0.24057544,33798.0,33797.0,0.69068437]
[1625593232392,0.56334544,33798.0,33797.0,0.69068437]
[1625593232690,0.56334544,33798.0,33796.0,0.69086708]
[1625593235037,0.56334544,33798.0,33794.0,0.69114811]
[1625593235278,3.6417,33795.0,33794.0,0.69114811]
[1625593235517,3.6417,33795.0,33791.0,0.93177226]
[1625593235757,3.6417,33795.0,33792.0,0.69121517]
[1625593236239,3.6417,33795.0,33792.0,1.03682258]
[1625593236240,0.48115088,33793.0,33792.0,1.03682258]
[1625593236481,0.48115088,33793.0,33792.0,0.69122125]
[1625593236720,0.48115088,33793.0,33791.0,0.93180632]
[1625593237141,0.48115088,33793.0,33792.0,0.69129911]
[1625593237982,0.48115088,33793.0,33791.0,0.93185]
[1625593239609,0.48115088,33793.0,33790.0,0.69133935]
[1625593239848,0.48115088,33793.0,33787.0,0.691393]
[1625593240090,0.48115088,33793.0,33785.0,0.69140748]
[1625593240332,0.48115088,33786.0,33784.0,0.93201388]
[1625593240449,0.77380088,33786.0,33784.0,0.93201388]
[1625593241540,0.77380088,33786.0,33785.0,3.22478454]
[1625593241542,0.48115088,33786.0,33785.0,3.22478454]
[1625593241778,0.48115088,33793.0,33785.0,3.22478454]
[1625593242015,0.48115088,33793.0,33785.0,4.60745303]
[1625593242257,0.48115088,33793.0,33791.0,0.69133547]
[1625593242375,0.48115088,33793.0,33792.0,0.24057544]
[1625593242496,0.48115088,33793.0,33792.0,1.19852073]
[1625593243638,0.48115088,33793.0,33792.0,0.95794529]
[1625593243760,0.48115088,33793.0,33792.0,0.26662]
[1625593243877,0.48115088,33793.0,33791.0,0.69130259]
[1625593244238,0.48115088,33793.0,33790.0,0.69132975]
[1625593246882,0.48115088,33793.0,33792.0,0.69122742]
[1625593247003,0.48115088,33793.0,33792.0,0.95208742]
[1625593247124,0.48115088,33793.0,33792.0,1.98889719]
[1625593248387,0.48115088,33793.0,33792.0,2.22947263]
[1625593251210,0.48115088,33793.0,33792.0,1.53824521]
[1625593251450,0.48115088,33793.0,33792.0,2.22958007]
[1625593253434,0.48115088,33793.0,33792.0,3.4394434]
[1625593253675,0.48115088,33793.0,33792.0,2.22958007]
[1625593255545,0.48115088,33793.0,33792.0,2.23365837]
[1625593255660,0.48115088,33793.0,33792.0,1.1968486]
[1625593255782,0.48115088,33793.0,33792.0,0.9359886]
[1625593255902,0.48115088,33793.0,33792.0,0.24465374]
[1625593256622,0.48115088,33793.0,33792.0,0.24057544]
[1625593256744,0.48115088,33793.0,33791.0,0.17284208]
[1625593256863,0.48115088,33793.0,33790.0,0.17284022]
[1625593257463,0.48115088,33793.0,33791.0,0.0040789]
[1625593257944,0.48115088,33793.0,33789.0,0.00407947]
[1625593258186,0.48115088,33793.0,33787.0,0.17280562]
[1625593258427,0.48115088,33793.0,33788.0,0.0040795]
[1625593258549,0.57266544,33789.0,33788.0,0.0040795]
[1625593259028,0.57266544,33789.0,33788.0,0.17688089]
[1625593259630,0.57266544,33789.0,33788.0,1.7321412]
[1625593259870,0.24057544,33789.0,33788.0,1.7321412]
[1625593260530,0.24057544,33789.0,33788.0,1.97271664]
[1625593260895,0.24057544,33789.0,33788.0,3.18225535]
[1625593261133,0.24057544,33789.0,33788.0,1.97271664]
[1625593261253,0.24057544,33789.0,33788.0,3.18222175]
[1625593261493,0.24057544,33789.0,33788.0,4.56449196]
[1625593261732,0.48115088,33793.0,33788.0,4.56449196]
[1625593261853,0.24057544,33793.0,33788.0,4.89279196]
[1625593262095,0.24057544,33793.0,33792.0,2.93769262]
[1625593262456,0.24057544,33793.0,33792.0,3.18234628]
[1625593262755,0.24057544,33793.0,33792.0,1.97270814]
[1625593262996,0.24057544,33793.0,33792.0,3.18245541]
[1625593269371,0.24057544,33793.0,33792.0,1.97270814]
[1625593271595,0.24057544,33793.0,33792.0,3.18206371]
[1625593272797,0.24057544,33793.0,33792.0,1.97270814]
[1625593272915,0.53933544,33793.0,33792.0,1.97270814]
[1625593273758,0.53933544,33793.0,33792.0,3.18105354]
[1625593277728,0.53933544,33793.0,33792.0,4.56453101]
[1625593277846,0.24057544,33793.0,33792.0,4.56453101]
[1625593278388,0.24057544,33793.0,33792.0,4.90154101]
[1625593283679,0.24057544,33793.0,33792.0,6.46099942]
[1625593285721,0.08722439,33795.0,33792.0,6.46099942]
[1625593285842,0.08722236,33797.0,33794.0,5.90994382]
[1625593286082,0.08721383,33800.0,33796.0,6.42565021]
[1625593286323,0.08720624,33802.0,33799.0,6.42102547]
[1625593286561,0.9206,33804.0,33801.0,6.41456871]
[1625593286683,0.9206,33804.0,33801.0,7.13629503]
[1625593286801,0.9206,33804.0,33803.0,6.41088605]
[1625593287401,0.9206,33804.0,33803.0,6.41496329]
[1625593287641,0.08713927,33809.0,33803.0,6.41496329]
[1625593287881,0.1741042,33810.0,33803.0,6.41496329]
[1625593287882,0.26124015,33810.0,33808.0,5.15010133]
[1625593288122,0.52217661,33810.0,33809.0,4.84532451]
[1625593288664,0.52217661,33810.0,33809.0,5.32647539]
[1625593289148,0.2611758,33810.0,33809.0,5.32647539]
[1625593289625,1.21769066,33811.0,33809.0,5.32647539]
[1625593289746,0.28043902,33810.0,33809.0,5.32647539]
[1625593289874,3.902e-05,33810.0,33809.0,5.82647539]
[1625593289986,0.26119716,33815.0,33809.0,7.37719669]
[1625593290112,0.26119716,33815.0,33809.0,7.38127275]
[1625593290225,0.08711476,33818.0,33814.0,5.85063616]
[1625593290465,0.20815184,33820.0,33817.0,4.29992741]
[1625593290585,0.20815184,33820.0,33819.0,4.1689]
[1625593290705,0.12104327,33820.0,33819.0,9.19098009]
[1625593291185,2.04099028,33823.0,33819.0,9.19098009]
[1625593291186,0.9976,33823.0,33819.0,9.19098009]
[1625593291431,0.9976,33823.0,33822.0,4.28674733]
[1625593292156,0.9976,33823.0,33822.0,2.91498818]
[1625593292389,1.69205007,33823.0,33822.0,0.68587957]
[1625593292686,2.97426591,33823.0,33821.0,0.68735178]
[1625593292806,3.30076591,33823.0,33821.0,0.68735178]
[1625593293046,1.73618377,33822.0,33820.0,0.68764936]
[1625593293286,1.73618377,33822.0,33819.0,1.40898676]
[1625593293287,0.69450822,33822.0,33819.0,1.40898676]
[1625593293528,0.69450822,33822.0,33819.0,0.72172632]
[1625593293646,3.995,33820.0,33819.0,0.72172632]
[1625593296649,4.68850666,33820.0,33819.0,0.72172632]
[1625593298208,4.68850666,33820.0,33819.0,0.48115088]
[1625593298330,4.68850666,33820.0,33815.0,0.68741088]
[1625593298749,0.48115088,33816.0,33815.0,0.68741088]
[1625593298990,0.48115088,33816.0,33814.0,0.24057544]
[1625593298991,0.83117088,33816.0,33814.0,0.24057544]
[1625593300071,0.48115088,33816.0,33815.0,0.68656586]
[1625593300311,0.48115088,33816.0,33815.0,1.71604108]
[1625593301033,0.48115088,33816.0,33815.0,0.68656586]
[1625593301273,0.48115088,33816.0,33814.0,0.92707726]
[1625593301871,0.75137088,33816.0,33814.0,0.92707726]
[1625593302292,0.75137088,33816.0,33814.0,0.24057544]
[1625593304756,0.75137088,33816.0,33810.0,0.68690346]
[1625593304877,0.24057544,33811.0,33805.0,1.2036188]
[1625593305117,0.24057544,33811.0,33802.0,1.20527616]
[1625593305358,0.24057544,33811.0,33800.0,1.20598732]
[1625593305537,0.24057544,33811.0,33799.0,1.20626294]
[1625593305657,3.7419,33800.0,33799.0,1.20626294]
[1625593305777,3.97446,33800.0,33799.0,1.20626294]
[1625593306921,4.69618632,33800.0,33799.0,1.20626294]
[1625593308486,4.69618632,33800.0,33799.0,2.58496947]
[1625593308727,4.69618632,33800.0,33799.0,1.20626294]
[1625593308848,4.69618632,33800.0,33799.0,1.44683838]
[1625593309088,0.95428632,33800.0,33799.0,1.44683838]
[1625593309330,0.72172632,33800.0,33799.0,1.44683838]
[1625593309931,0.72172632,33800.0,33799.0,2.82266437]
[1625593311016,0.72172632,33800.0,33799.0,3.17038437]
[1625593311137,0.72172632,33800.0,33799.0,3.17446504]
[1625593311437,0.72172632,33800.0,33799.0,4.72019902]
[1625593312640,0.72172632,33800.0,33799.0,3.17446504]
[1625593313180,0.72172632,33800.0,33799.0,2.82674504]
[1625593318719,0.72172632,33800.0,33799.0,4.37688028]
[1625593318898,0.72172632,33800.0,33799.0,4.37279961]
[1625593319258,0.72172632,33800.0,33799.0,4.37688037]
[1625593319680,0.72172632,33800.0,33799.0,1.79479144]
[1625593319922,0.72172632,33800.0,33799.0,4.37724831]
[1625593334170,0.72172632,33800.0,33799.0,4.13667287]
[1625593334171,1.05218632,33800.0,33799.0,4.13667287]
[1625593334523,1.05218632,33800.0,33799.0,1.2092273]
[1625593334945,1.06739305,33800.0,33799.0,0.00408076]
[1625593335126,1.41473272,33800.0,33799.0,1.04479907]
[1625593335370,1.39952599,33800.0,33799.0,1.04479907]
[1625593335729,1.05218632,33800.0,33799.0,1.04479907]
[1625593338314,0.72172632,33800.0,33799.0,3.64426149]
[1625593338793,0.72172632,33800.0,33799.0,8.52836149]
[1625593339394,0.72172632,33800.0,33799.0,10.08724527]
[1625593353043,0.72172632,33800.0,33799.0,5.20314527]
[1625593353164,1.00006632,33800.0,33799.0,5.20314527]
[1625593353528,1.34830624,33800.0,33799.0,3.64426149]
[1625593353768,1.00006632,33800.0,33799.0,5.20747877]
[1625593354008,1.00006632,33800.0,33799.0,3.64426149]
[1625593355509,1.00006632,33800.0,33799.0,5.20688292]